fUSD/lending_fUSD_20240426
["ID","MTS","AMOUNT","RATE_DAILY","PERIOD"]
[323669471,1714153843783,-522.46,0.00011457,2]
[323669473,1714153843793,-1396.49,0.00011457,2]
[323669475,1714153843802,-587.89,0.00011457,2]
[323669477,1714153843811,-500.0,0.00011457,2]
[323669479,1714153843821,-500.0,0.00011457,2]
[323669481,1714153843831,-500.0,0.00011457,2]
[323669483,1714153843840,-917.3,0.00011457,2]
[323669485,1714153843849,-500.0,0.00011457,2]
[323669487,1714153843860,-1421.13,0.00011457,2]
[323669489,1714153843871,-519.67,0.00011457,2]
[323669491,1714153843880,-500.0,0.00011457,2]
[323669493,1714153843890,-1480.37,0.00011457,2]
[323669495,1714153843899,-271.51280994,0.00011457,2]
[323669532,1714153844236,-228.48719006,0.00011457,2]
[323669534,1714153844245,-1731.94,0.00011457,2]
[323669536,1714153844256,-554.6,0.00011457,2]
[323669538,1714153844265,-615.24064876,0.00011457,2]
[323669540,1714153844274,-377.53,0.00011457,2]
[323669542,1714153844283,-500.0,0.00011457,2]
[323669544,1714153844293,-616.53,0.00011457,2]
[323669546,1714153844302,-652.74,0.00011457,2]
[323669548,1714153844312,-500.0,0.00011457,2]
[323669558,1714153844387,-500.0,0.00011457,2]
[323669560,1714153844396,-709.29,0.00011457,2]
[323669562,1714153844406,-500.0,0.00011457,2]
[323669564,1714153844415,-235.9,0.00011457,2]
[323669566,1714153844424,-561.3,0.00011457,2]
[323669568,1714153844434,-597.98,0.00011457,2]
[323669570,1714153844443,-500.0,0.00011457,2]
[323669572,1714153844453,-836.26,0.00011457,2]
[323669574,1714153844461,-596.24,0.00011457,2]
[323669576,1714153844471,-1950.46,0.00011457,2]
[323669578,1714153844480,-500.0,0.00011457,2]
[323669581,1714153844491,-500.0,0.00011457,2]
[323669583,1714153844500,-1048.43,0.00011457,2]
[323669585,1714153844510,-1579.21,0.00011457,2]
[323669587,1714153844519,-500.0,0.00011457,2]
[323669589,1714153844528,-500.0,0.00011457,2]
[323669590,1714153844537,-609.16,0.00011457,2]
[323669592,1714153844546,-1020.56,0.00011457,2]
[323669595,1714153844555,-500.0,0.00011457,2]
[323669597,1714153844564,-604.09,0.00011457,2]
[323669599,1714153844574,-500.0,0.00011457,2]
[323669600,1714153844583,-8599.59,0.00011457,2]
[323669602,1714153844592,-500.0,0.00011457,2]
[323669605,1714153844601,-3737.78,0.00011457,2]
[323669606,1714153844611,-1039.2,0.00011457,2]
[323669609,1714153844620,-500.0,0.00011457,2]
[323669611,1714153844629,-500.0,0.00011457,2]
[323669613,1714153844640,-759.95,0.00011457,2]
[323669614,1714153844648,-6650.83,0.00011457,2]
[323669615,1714153844657,-1434.58,0.00011457,2]
[323669616,1714153844667,-500.0,0.00011457,2]
[323669617,1714153844677,-3252.22,0.00011457,2]
[323669618,1714153844687,-1558.79,0.00011457,2]
[323669619,1714153844696,-500.0,0.00011457,2]
[323669620,1714153844705,-1043.05,0.00011457,2]
[323669622,1714153844714,-8125.44,0.00011457,2]
[323669624,1714153844723,-500.0,0.00011457,2]
[323669626,1714153844733,-2111.72,0.00011457,2]
[323669628,1714153844743,-1400.65,0.00011457,2]
[323669629,1714153844753,-500.0,0.00011457,2]
[323669630,1714153844762,-4459.78,0.00011457,2]
[323669631,1714153844773,-13157.58,0.00011457,2]
[323669632,1714153844783,-1117.95,0.00011457,2]
[323669633,1714153844792,-3561.44,0.00011457,2]
[323669634,1714153844801,-2108.81,0.00011457,2]
[323669635,1714153844810,-2126.38,0.00011457,2]
[323669636,1714153844820,-500.0,0.00011457,2]
[323669637,1714153844830,-500.0,0.00011457,2]
[323669638,1714153844839,-500.0,0.00011457,2]
[323669639,1714153844849,-985.0,0.00011457,2]
[323669640,1714153844859,-1630.02,0.00011457,2]
[323669641,1714153844868,-500.0,0.00011457,2]
[323669642,1714153844877,-2812.14,0.00011457,2]
[323669643,1714153844886,-2045.56,0.00011457,2]
[323669644,1714153844896,-500.0,0.00011457,2]
[323669645,1714153844905,-1618.78,0.00011457,2]
[323669646,1714153844914,-4501.39,0.00011457,2]
[323669647,1714153844924,-564.45,0.00011457,2]
[323669648,1714153844933,-2370.06,0.00011457,2]
[323669649,1714153844942,-1437.32,0.00011457,2]
[323669650,1714153844952,-1682.7,0.00011457,2]
[323669651,1714153844961,-672.16,0.00011457,2]
[323669652,1714153844970,-2476.35,0.00011457,2]
[323669653,1714153844979,-2115.43,0.00011457,2]
[323669654,1714153844988,-500.0,0.00011457,2]
[323669655,1714153844997,-500.0,0.00011457,2]
[323669656,1714153845009,-500.0,0.00011457,2]
[323669657,1714153845018,-5879.45,0.00011457,2]
[323669658,1714153845028,-1265.88,0.00011457,2]
[323669659,1714153845037,-500.0,0.00011457,2]
[323669660,1714153845046,-1003.80385018,0.00011457,2]
[323669661,1714153845059,-419.6410628,0.00011457,2]
[323669662,1714153845094,-613.78133256,0.00011457,2]
[323669663,1714153845105,-76.93375446,0.00011457,2]
[323669664,1714153845114,-753.68,0.00011457,2]
[323669665,1714153845123,-1868.59,0.00011457,2]
[323669666,1714153845132,-503.29624554,0.00011457,2]
[323669667,1714153845144,-1178.06375446,0.00011457,2]
[323669668,1714153845153,-1350.89707142,0.00011457,2]
[323669669,1714153845165,-97.96292858,0.00011457,2]
[323669670,1714153845174,-500.0,0.00011457,2]
[323669671,1714153845183,-401.36120743,0.00011457,2]
[323669672,1714153845224,-98.63879257,0.00011457,2]
[323669673,1714153845234,-1885.69,0.00011457,2]
[323669674,1714153845243,-1042.6,0.00011457,2]
[323669675,1714153845255,-500.0,0.00011457,2]
[323669676,1714153845264,-500.0,0.00011457,2]
[323669677,1714153845274,-1281.54,0.00011457,2]
[323669678,1714153845284,-569.67,0.00011457,2]
[323669679,1714153845293,-3341.26,0.00011457,2]
[323669680,1714153845302,-2098.32,0.00011457,2]
[323669681,1714153845312,-796.29,0.00011457,2]
[323669682,1714153845321,-500.0,0.00011457,2]
[323669683,1714153845330,-875.56,0.00011457,2]
[323669684,1714153845339,-500.0,0.00011457,2]
[323669685,1714153845349,-500.0,0.00011457,2]
[323669686,1714153845358,-500.0,0.00011457,2]
[323669687,1714153845368,-500.0,0.00011457,2]
[323669688,1714153845377,-500.0,0.00011457,2]
[323669689,1714153845386,-2080.21,0.00011457,2]
[323669690,1714153845396,-500.0,0.00011457,2]
[323669691,1714153845405,-2773.89,0.00011457,2]
[323669692,1714153845415,-995.74,0.00011457,2]
[323669693,1714153845424,-4721.74060365,0.00011457,2]
[323669695,1714153845435,-1043.65939635,0.00011457,2]
[323669697,1714153845445,-500.0,0.00011457,2]
[323669699,1714153845454,-500.0,0.00011457,2]
[323669700,1714153845463,-500.0,0.00011457,2]
[323669701,1714153845472,-3969.79,0.00011457,2]
[323669702,1714153845481,-1597.11,0.00011457,2]
[323669704,1714153845491,-557.74192492,0.00011457,2]
[323669706,1714153845791,-801.70807508,0.00011457,2]
[323669707,1714153845800,-1230.49192492,0.00011457,2]
[323669708,1714153845842,-500.0,0.00011183,2]
[323669709,1714153845851,-1245.84495389,0.00011457,2]
[323669710,1714153845878,-431.87312119,0.00011457,2]
[323669711,1714153845887,-235.47363685,0.00011457,2]
[323669712,1714153845898,-503.48872017,0.00011457,2]
[323669713,1714153845917,-885.79764298,0.00011457,2]
[323669714,1714153845926,-2388.07605714,0.00011457,2]
[323669715,1714153845937,-519.57394286,0.00011457,2]
[323669716,1714153845947,-500.0,0.00011457,2]
[323669717,1714153845957,-8463.12,0.00011457,2]
[323669718,1714153845966,-2868.36,0.00011457,2]
[323669719,1714153845975,-500.0,0.00011457,2]
[323669720,1714153845984,-1725.72,0.00011457,2]
[323669721,1714153845993,-5636.94,0.00011457,2]
[323669722,1714153846002,-500.0,0.00011457,2]
[323669723,1714153846011,-500.0,0.00011457,2]
[323669724,1714153846020,-1351.61,0.00011457,2]
[323669725,1714153846029,-685.6,0.00011457,2]
[323669726,1714153846038,-1882.77,0.00011457,2]
[323669727,1714153846047,-1332.43,0.00011457,2]
[323669728,1714153846056,-953.91,0.00011457,2]
[323669729,1714153846065,-500.0,0.00011457,2]
[323669730,1714153846074,-3452.61,0.00011457,2]
[323669731,1714153846084,-2113.14956794,0.00011457,2]
[323669735,1714153846108,-278.13525569,0.00011457,2]
[323669737,1714153846119,-1281.93425392,0.00011457,2]
[323669739,1714153846130,-786.86000001,0.00011457,2]
[323669785,1714153846531,-472.93999962,0.00011182,2]
[323669806,1714153846723,-0.35086124,0.00011182,2]
[323669809,1714153846735,-26.70913914,0.00011182,2]
[323669811,1714153846744,-4008.74092244,0.00011457,2]
[323669813,1714153846754,-500.0,0.00011457,2]
[323669815,1714153846763,-500.0,0.00011457,2]
[323669817,1714153846772,-199.02523474,0.00011557,2]
[323669818,1714153846784,-500.0,0.00011557,2]
[323669820,1714153846793,-543.32,0.00011557,2]
[323669823,1714153846803,-500.0,0.00011557,2]
[323669825,1714153846812,-191.14776903,0.00011557,2]
[323669827,1714153846821,-500.0,0.00011557,2]
[323669829,1714153846831,-500.0,0.00011557,2]
[323669831,1714153846840,-500.0,0.00011557,2]
[323669832,1714153846849,-500.0,0.00011557,2]
[323669834,1714153846860,-138.00404045,0.00011557,2]
[323669837,1714153846871,-584.56595955,0.00011557,2]
[323669839,1714153846880,-500.0,0.00011557,2]
[323669841,1714153846889,-616.72,0.00011557,2]
[323669843,1714153846897,-135.60535433,0.00011557,2]
[323669846,1714153846918,-4329.94172471,0.00011182,2]
[323669848,1714153846927,-364.39464567,0.00011557,2]
[323669850,1714153846936,-507.49,0.00011557,2]
[323669852,1714153846946,-955.84364434,0.00011557,2]
[323669854,1714153846957,-374.45635566,0.00011557,2]
[323669856,1714153846966,-98.82964634,0.00011557,2]
[323669858,1714153846978,-283.51448246,0.00011557,2]
[323669933,1714153847695,-414.28328527,0.00011182,2]
[323669935,1714153847706,-500.0,0.00011182,2]
[323669937,1714153847716,-694.54171473,0.00011182,2]
[323669941,1714153847745,-37.15828527,0.00011182,2]
[323669944,1714153847757,-731.7,0.00011456,2]
[323669946,1714153847767,-117.6558712,0.00011557,2]
[323669948,1714153847777,-500.0,0.00011557,2]
[323669950,1714153847790,-500.0,0.00011557,2]
[323669952,1714153847800,-753.52,0.00011557,2]
[323669954,1714153847810,-794.68,0.00011557,2]
[323669956,1714153847819,-704.7,0.00011557,2]
[323669958,1714153847830,-392.60142794,0.00011557,2]
[323669960,1714153847843,-259.95857206,0.00011557,2]
[323669962,1714153847852,-140.04142794,0.00011557,2]
[323670020,1714153861684,247.82015446,8.426e-05,2]
[323670021,1714153947070,173.08810832,8.426e-05,2]
[323670022,1714153970963,108.09173722,8.426e-05,2]
[323670023,1714153970987,67.67194378,8.426e-05,2]
[323670026,1714154182707,556.89,8.41e-05,2]
[323670030,1714154674795,529.04,8.246e-05,2]
[323670104,1714154904248,-1197.94,0.00010125,2]
[323670105,1714154904269,-508.92,0.00010169,2]
[323670106,1714154904290,-250.0,0.00010187,2]
[323670107,1714154904313,-166.81,0.00010254,2]
[323670108,1714154904333,-924.65,0.00010281,2]
[323670109,1714154904356,-153.67,0.00010298,2]
[323670110,1714154904379,-227.91,0.00010441,2]
[323670111,1714154904401,-153.67,0.00010477,2]
[323670112,1714154904424,-416.43,0.00010509,2]
[323670113,1714154905278,-104.6,0.00010509,2]
[323670114,1714154905300,-529.04,0.0001051,2]
[323670115,1714154905323,-153.67,0.00010656,2]
[323670116,1714154905344,-161.11918863,0.00010662,2]
[323670117,1714154905364,-499.99,0.00010662,2]
[323670118,1714154905386,-153.67,0.00010835,2]
[323670119,1714154905411,-162.51,0.00010857,2]
[323670120,1714154905431,-150.0,0.00010958,2]
[323670121,1714154905457,-150.0,0.00010958,2]
[323670122,1714154905477,-1935.40081137,0.00010959,2]
[323670123,1714154906201,-1433.49918863,0.00010959,2]
[323670124,1714154906224,-150.0,0.00010959,2]
[323670125,1714154906245,-803.89,0.00010959,3]
[323670126,1714154906267,-1612.61081137,0.00011,3]
[323670127,1714154917627,-1137.38918863,0.00011,3]
[323670128,1714154941971,150.0,0.00011081,2]
[323670129,1714154942306,150.0,0.00011081,2]
[323670130,1714154942366,200.0,0.00010606,2]
[323670136,1714154963563,169.04,0.00010586,2]
[323670152,1714155031893,-837.9207,0.00011082,2]
[323670153,1714155032101,-1071.7441,0.00011082,2]
[323670154,1714155032113,-309.50112767,0.00011082,2]
[323670155,1714155032129,-1966.22875406,0.00011082,2]
[323670156,1714155032228,-224.27011827,0.00011082,2]
[323670157,1714155032239,-90.15737529,0.00011082,2]
[323670158,1714155032250,-482.01443564,0.00011082,2]
[323670159,1714155032271,-469.29674785,0.00011082,2]
[323670160,1714155032283,-432.38722525,0.00011082,2]
[323670161,1714155032294,-4301.87421597,0.00011082,2]
[323670162,1714155032304,-155.0,0.00011179,2]
[323670163,1714155032314,-205.21315067,0.0001118,2]
[323670164,1714155032325,-500.0,0.0001118,2]
[323670165,1714155032335,-246.78120752,0.0001118,2]
[323670166,1714155032347,-748.58819144,0.0001118,2]
[323670167,1714155032359,-140.40060104,0.0001118,2]
[323670168,1714155032368,-500.0,0.0001118,2]
[323670169,1714155032378,-500.0,0.0001118,2]
[323670170,1714155032388,-2215.83251815,0.00011181,2]
[323670171,1714155032398,-155.0,0.00011181,2]
[323670172,1714155032407,-500.0,0.00011181,2]
[323670173,1714155032417,-500.0,0.00011181,2]
[323670174,1714155032427,-500.0,0.00011181,2]
[323670175,1714155032436,-60.49073171,0.00011181,2]
[323670176,1714155032448,-439.50926829,0.00011181,2]
[323670177,1714155032457,-23.14733437,0.00011181,2]
[323670178,1714155037574,416.82,0.00010647,2]
[323670220,1714155037880,-500.0,0.0001118,2]
[323670223,1714155037890,-414.16793897,0.00011181,2]
[323670226,1714155037900,-500.0,0.00011181,2]
[323670229,1714155037910,-500.0,0.00011181,2]
[323670231,1714155037919,-523.23,0.00011181,2]
[323670233,1714155037928,-500.0,0.00011181,2]
[323670235,1714155037938,-737.1,0.00011181,2]
[323670237,1714155037947,-500.0,0.00011181,2]
[323670239,1714155037957,-500.0,0.00011181,2]
[323670241,1714155037965,-1181.29,0.00011181,2]
[323670243,1714155037975,-500.0,0.00011181,2]
[323670245,1714155037984,-500.0,0.00011181,2]
[323670247,1714155037994,-500.0,0.00011181,2]
[323670249,1714155038003,-500.0,0.00011181,2]
[323670251,1714155038013,-500.0,0.00011181,2]
[323670253,1714155038022,-375.97987251,0.00011181,2]
[323670257,1714155038047,-124.02012749,0.00011181,2]
[323670259,1714155038057,-500.0,0.00011181,2]
[323670261,1714155038065,-500.0,0.00011181,2]
[323670263,1714155038076,-500.0,0.00011181,2]
[323670264,1714155038085,-500.0,0.00011181,2]
[323670267,1714155038095,-1440.35,0.00011181,2]
[323670269,1714155038104,-543.38,0.00011181,2]
[323670271,1714155038116,-500.0,0.00011181,2]
[323670272,1714155038126,-500.0,0.00011181,2]
[323670273,1714155038135,-610.01,0.00011181,2]
[323670274,1714155038145,-500.0,0.00011181,2]
[323670275,1714155038155,-500.0,0.00011181,2]
[323670276,1714155038164,-500.0,0.00011181,2]
[323670277,1714155038174,-500.0,0.00011181,2]
[323670278,1714155038183,-500.0,0.00011181,2]
[323670279,1714155038194,-500.0,0.00011181,2]
[323670280,1714155038205,-500.0,0.00011181,2]
[323670281,1714155038215,-201.14,0.00011181,2]
[323670282,1714155038225,-300.65,0.00011181,2]
[323670283,1714155038235,-500.0,0.00011181,2]
[323670284,1714155038245,-500.0,0.00011181,2]
[323670285,1714155038254,-500.0,0.00011181,2]
[323670286,1714155038263,-938.78,0.00011181,2]
[323670287,1714155038272,-500.0,0.00011181,2]
[323670288,1714155038282,-500.0,0.00011181,2]
[323670289,1714155038292,-500.0,0.00011181,2]
[323670290,1714155038302,-576.17,0.00011181,2]
[323670291,1714155038311,-264.06,0.00011181,2]
[323670292,1714155038322,-500.0,0.00011181,2]
[323670294,1714155038331,-1465.27,0.00011181,2]
[323670295,1714155038341,-154.68,0.00011181,2]
[323670297,1714155038351,-519.67,0.00011181,2]
[323670299,1714155038360,-500.0,0.00011181,2]
[323670301,1714155038370,-500.0,0.00011181,2]
[323670302,1714155038380,-1530.0,0.00011181,2]
[323670303,1714155038390,-201.9,0.00011181,2]
[323670304,1714155038399,-500.0,0.00011181,2]
[323670305,1714155038409,-354.87,0.00011181,2]
[323670306,1714155038418,-500.0,0.00011181,2]
[323670307,1714155038428,-1687.27,0.00011181,2]
[323670308,1714155038437,-500.0,0.00011181,2]
[323670309,1714155038447,-500.0,0.00011181,2]
[323670310,1714155038456,-500.0,0.00011181,2]
[323670311,1714155038466,-552.33,0.00011181,2]
[323670312,1714155038476,-615.24064876,0.00011181,2]
[323670313,1714155038485,-354.03056168,0.00011181,2]
[323670314,1714155038495,-500.0,0.00011181,2]
[323670315,1714155038505,-405.20267192,0.00011181,2]
[323670316,1714155038515,-368.05,0.00011181,2]
[323670317,1714155038525,-500.0,0.00011181,2]
[323670318,1714155038534,-500.0,0.00011181,2]
[323670319,1714155038544,-500.0,0.00011181,2]
[323670320,1714155038553,-500.0,0.00011181,2]
[323670321,1714155038562,-367.79,0.00011181,2]
[323670322,1714155038573,-500.0,0.00011181,2]
[323670323,1714155038583,-611.68,0.00011181,2]
[323670324,1714155038592,-500.0,0.00011181,2]
[323670325,1714155038602,-646.37,0.00011181,2]
[323670326,1714155038611,-500.0,0.00011181,2]
[323670327,1714155038621,-500.0,0.00011181,2]
[323670328,1714155038630,-500.0,0.00011181,2]
[323670329,1714155038640,-700.57,0.00011181,2]
[323670330,1714155038650,-500.0,0.00011181,2]
[323670331,1714155038660,-500.0,0.00011181,2]
[323670332,1714155038670,-500.0,0.00011181,2]
[323670333,1714155038679,-500.0,0.00011181,2]
[323670334,1714155038689,-500.0,0.00011181,2]
[323670335,1714155038699,-500.0,0.00011181,2]
[323670336,1714155038708,-235.9,0.00011181,2]
[323670337,1714155038718,-500.0,0.00011181,2]
[323670338,1714155038727,-500.0,0.00011181,2]
[323670339,1714155038737,-536.81,0.00011181,2]
[323670340,1714155038746,-621.35,0.00011181,2]
[323670341,1714155038755,-537.91,0.00011181,2]
[323670342,1714155038765,-238.0,0.00011181,2]
[323670343,1714155038774,-602.35,0.00011181,2]
[323670344,1714155038783,-500.0,0.00011181,2]
[323670345,1714155038793,-592.23,0.00011181,2]
[323670346,1714155038802,-500.0,0.00011181,2]
[323670347,1714155038812,-1909.28,0.00011181,2]
[323670348,1714155038825,-500.0,0.00011181,2]
[323670349,1714155038834,-500.35086124,0.00011181,2]
[323670350,1714155038846,-500.0,0.00011181,2]
[323670351,1714155038856,-1025.58,0.00011181,2]
[323670352,1714155038866,-500.0,0.00011181,2]
[323670353,1714155038875,-500.0,0.00011181,2]
[323670354,1714155038884,-1543.07,0.00011181,2]
[323670355,1714155038894,-500.0,0.00011181,2]
[323670356,1714155038903,-500.0,0.00011181,2]
[323670357,1714155038913,-501.4029515,0.00011181,2]
[323670358,1714155038923,-604.62,0.00011181,2]
[323670359,1714155038932,-500.0,0.00011181,2]
[323670360,1714155038941,-500.0,0.00011181,2]
[323670362,1714155038951,-189.43455379,0.00011181,2]
[323670363,1714155038961,-500.0,0.00011181,2]
[323670364,1714155038970,-978.03,0.00011181,2]
[323670365,1714155038979,-317.01,0.00011181,2]
[323670366,1714155038989,-1357.08,0.00011181,2]
[323670367,1714155038999,-500.0,0.00011181,2]
[323670368,1714155039009,-500.0,0.00011181,2]
[323670369,1714155039019,-627.45,0.00011181,2]
[323670370,1714155039028,-500.0,0.00011181,2]
[323670371,1714155039038,-500.0,0.00011181,2]
[323670372,1714155039047,-500.0,0.00011181,2]
[323670373,1714155039056,-500.0,0.00011181,2]
[323670374,1714155039066,-3659.06,0.00011181,2]
[323670375,1714155039077,-500.0,0.00011181,2]
[323670376,1714155039086,-500.0,0.00011181,2]
[323670377,1714155039096,-500.0,0.00011181,2]
[323670378,1714155039105,-500.0,0.00011181,2]
[323670379,1714155039118,-749.12,0.00011181,2]
[323670380,1714155039127,-500.0,0.00011181,2]
[323670381,1714155039136,-500.0,0.00011181,2]
[323670382,1714155039146,-500.0,0.00011181,2]
[323670383,1714155039155,-1395.64,0.00011181,2]
[323670384,1714155039165,-3196.41,0.00011181,2]
[323670385,1714155039174,-500.0,0.00011181,2]
[323670386,1714155039183,-49.91776804,0.00011181,2]
[323670387,1714155039230,-450.08223196,0.00011181,2]
[323670388,1714155039239,-68.8639513,0.00011181,2]
[323670389,1714155039254,-262.65011809,0.00011181,2]
[323670390,1714155039266,-2046.98593061,0.00011181,2]
[323670391,1714155039279,-406.09332457,0.00011181,2]
[323670392,1714155039290,-93.90667543,0.00011181,2]
[323670393,1714155039300,-1020.42,0.00011181,2]
[323670394,1714155039309,-3366.16086379,0.00011181,2]
[323670395,1714155039632,-820.17749397,0.00011181,2]
[323670396,1714155039664,-3722.47164224,0.00011181,2]
[323670397,1714155039673,-500.0,0.00011181,2]
[323670398,1714155039682,-527.58269509,0.00011181,2]
[323670399,1714155039692,-500.0,0.00011181,2]
[323670400,1714155039701,-500.0,0.00011181,2]
[323670401,1714155039710,-500.0,0.00011181,2]
[323670402,1714155039719,-500.0,0.00011181,2]
[323670403,1714155039728,-500.0,0.00011181,2]
[323670404,1714155039738,-3397.7,0.00011181,2]
[323670405,1714155039747,-500.0,0.00011181,2]
[323670406,1714155039756,-1591.28,0.00011181,2]
[323670407,1714155039766,-504.05367567,0.00011181,2]
[323670408,1714155039775,-13439.13,0.00011181,2]
[323670409,1714155039784,-500.0,0.00011181,2]
[323670410,1714155039794,-6492.44,0.00011181,2]
[323670411,1714155039803,-1043.29,0.00011181,2]
[323670412,1714155039812,-500.0,0.00011181,2]
[323670413,1714155039823,-500.0,0.00011181,2]
[323670414,1714155039832,-500.0,0.00011181,2]
[323670415,1714155039841,-500.0,0.00011181,2]
[323670416,1714155039850,-500.0,0.00011181,2]
[323670417,1714155039860,-693.85,0.00011181,2]
[323670418,1714155039869,-500.0,0.00011181,2]
[323670419,1714155039878,-503.97108559,0.00011181,2]
[323670420,1714155039887,-500.0,0.00011181,2]
[323670421,1714155039897,-500.0,0.00011181,2]
[323670422,1714155039906,-1145.64,0.00011181,2]
[323670423,1714155039915,-1010.42,0.00011181,2]
[323670424,1714155039924,-1134.58,0.00011181,2]
[323670425,1714155039933,-500.0,0.00011181,2]
[323670426,1714155039942,-500.0,0.00011181,2]
[323670427,1714155039952,-500.0,0.00011181,2]
[323670428,1714155039961,-500.0,0.00011181,2]
[323670430,1714155039970,-634.76,0.00011181,2]
[323670432,1714155039979,-500.0,0.00011181,2]
[323670434,1714155039988,-500.0,0.00011181,2]
[323670436,1714155039997,-500.0,0.00011181,2]
[323670437,1714155040006,-500.0,0.00011181,2]
[323670439,1714155040017,-500.0,0.00011181,2]
[323670440,1714155040026,-500.0,0.00011181,2]
[323670441,1714155040035,-874.91,0.00011181,2]
[323670442,1714155040044,-2798.52,0.00011181,2]
[323670443,1714155040054,-500.0,0.00011181,2]
[323670444,1714155040064,-664.99,0.00011181,2]
[323670445,1714155040074,-2085.89,0.00011181,2]
[323670446,1714155040083,-500.0,0.00011181,2]
[323670447,1714155040093,-2064.13,0.00011181,2]
[323670448,1714155040102,-500.0,0.00011181,2]
[323670449,1714155040113,-1115.66,0.00011181,2]
[323670450,1714155040124,-2080.77,0.00011181,2]
[323670451,1714155040133,-1241.31,0.00011181,2]
[323670452,1714155040142,-500.0,0.00011181,2]
[323670453,1714155040151,-505.69626416,0.00011181,2]
[323670454,1714155040162,-500.0,0.00011181,2]
[323670455,1714155040171,-2543.03,0.00011181,2]
[323670456,1714155040180,-1910.89,0.00011181,2]
[323670457,1714155040189,-1663.13,0.00011181,2]
[323670458,1714155040199,-500.0,0.00011181,2]
[323670459,1714155040208,-1686.82,0.00011181,2]
[323670460,1714155040218,-500.0,0.00011181,2]
[323670461,1714155040227,-1974.12,0.00011181,2]
[323670462,1714155040236,-500.0,0.00011181,2]
[323670463,1714155040249,-500.0,0.00011181,2]
[323670464,1714155040259,-500.0,0.00011181,2]
[323670465,1714155040268,-1911.54,0.00011181,2]
[323670466,1714155040277,-500.0,0.00011181,2]
[323670467,1714155040287,-690.88,0.00011181,2]
[323670468,1714155040297,-500.0,0.00011181,2]
[323670469,1714155040306,-500.0,0.00011181,2]
[323670470,1714155040316,-500.0,0.00011181,2]
[323670471,1714155040328,-500.0,0.00011181,2]
[323670472,1714155040337,-1356.67,0.00011181,2]
[323670473,1714155040347,-1603.21,0.00011181,2]
[323670474,1714155040356,-904.44,0.00011181,2]
[323670475,1714155040365,-500.0,0.00011181,2]
[323670476,1714155040375,-1728.0,0.00011181,2]
[323670477,1714155040385,-3675.28,0.00011181,2]
[323670478,1714155040394,-1764.86,0.00011181,2]
[323670479,1714155040404,-826.0,0.00011181,2]
[323670480,1714155040413,-500.0,0.00011181,2]
[323670481,1714155040422,-2421.19,0.00011181,2]
[323670482,1714155040432,-1850.62,0.00011181,2]
[323670483,1714155040441,-500.0,0.00011181,2]
[323670484,1714155040451,-1195.57,0.00011181,2]
[323670485,1714155040460,-500.0,0.00011181,2]
[323670486,1714155040469,-500.0,0.00011181,2]
[323670487,1714155040478,-500.0,0.00011181,2]
[323670488,1714155040488,-2067.36,0.00011181,2]
[323670489,1714155040498,-4437.87,0.00011181,2]
[323670490,1714155040508,-2035.88,0.00011181,2]
[323670491,1714155040517,-500.0,0.00011181,2]
[323670492,1714155040526,-819.13,0.00011181,2]
[323670493,1714155040536,-1032.39,0.00011181,2]